[Event "Masters Tournament (MTO)"]
[Site "Biel, Switzerland"]
[Date "2026.07.23"]
[Round "10.11"]
[White "Liu, Bei"]
[Black "Balabayeva, Xeniya"]
[Result "1/2-1/2"]
[TimeControl "100+30+30sec/move"]
[WhiteTitle "-"]
[BlackTitle "-"]
[WhiteFideId "8603596"]
[BlackFideId "13719688"]
[WhiteElo "2175"]
[BlackElo "2302"]

1. e4 {[%clk 01:40:54]} {[%emt 00:00:03]} e5 {[%clk 01:40:57]} {[%emt
00:00:08]} 2. Nf3 {[%clk 01:41:16]} {[%emt 00:00:07]} Nc6 {[%clk 01:41:21]}
{[%emt 00:00:05]} 3. Bc4 {[%clk 01:40:38]} {[%emt 00:01:08]} Nf6 {[%clk
01:41:42]} {[%emt 00:00:10]} 4. d3 {[%clk 01:41:00]} {[%emt 00:00:08]} Be7
{[%clk 01:42:05]} {[%emt 00:00:07]} 5. O-O {[%clk 01:41:23]} {[%emt 00:00:06]}
O-O {[%clk 01:42:28]} {[%emt 00:00:07]} 6. Nc3 {[%clk 01:41:50]} {[%emt
00:00:03]} d6 {[%clk 01:42:50]} {[%emt 00:00:09]} 7. a4 {[%clk 01:42:12]}
{[%emt 00:00:07]} a5 {[%clk 01:39:48]} {[%emt 00:03:32]} 8. h3 {[%clk
01:42:20]} {[%emt 00:00:22]} Be6 {[%clk 01:38:14]} {[%emt 00:02:05]} 9. Nd5
{[%clk 01:37:21]} {[%emt 00:05:29]} Nb4 {[%clk 01:13:42]} {[%emt 00:25:02]} 10.
Ne3 {[%clk 01:34:39]} {[%emt 00:03:11]} h6 {[%clk 01:08:02]} {[%emt 00:06:11]}
11. c3 {[%clk 01:30:22]} {[%emt 00:04:46]} Na6 {[%clk 01:07:50]} {[%emt
00:00:42]} 12. Bxe6 {[%clk 01:14:08]} {[%emt 00:16:45]} fxe6 {[%clk 01:08:12]}
{[%emt 00:00:07]} 13. Nc4 {[%clk 01:14:17]} {[%emt 00:00:21]} b6 {[%clk
01:00:17]} {[%emt 00:08:26]} 14. Re1 {[%clk 01:11:56]} {[%emt 00:02:51]} Qe8
{[%clk 00:53:20]} {[%emt 00:07:27]} 15. d4 {[%clk 01:05:59]} {[%emt 00:06:27]}
d5 {[%clk 00:42:52]} {[%emt 00:10:57]} 16. Ncxe5 {[%clk 00:40:15]} {[%emt
00:26:15]} Nxe4 {[%clk 00:42:40]} {[%emt 00:00:41]} 17. Nd2 {[%clk 00:39:15]}
{[%emt 00:01:31]} Nxf2 {[%clk 00:14:44]} {[%emt 00:28:25]} 18. Qe2 {[%clk
00:39:38]} {[%emt 00:00:06]} Bd6 {[%clk 00:09:47]} {[%emt 00:05:29]} 19. Nef3
{[%clk 00:38:22]} {[%emt 00:01:45]} Ne4 {[%clk 00:09:00]} {[%emt 00:01:17]} 20.
Nxe4 {[%clk 00:38:33]} {[%emt 00:00:19]} dxe4 {[%clk 00:09:29]} {[%emt
00:00:02]} 21. Qxe4 {[%clk 00:39:01]} {[%emt 00:00:02]} Rf6 {[%clk 00:09:21]}
{[%emt 00:00:37]} 22. b3 {[%clk 00:36:26]} {[%emt 00:03:06]} Rd8 {[%clk
00:07:51]} {[%emt 00:02:00]} 23. Bb2 {[%clk 00:34:03]} {[%emt 00:02:53]} Qh5
{[%clk 00:05:21]} {[%emt 00:03:00]} 24. Ba3 {[%clk 00:27:33]} {[%emt 00:07:00]}
Qd5 {[%clk 00:03:00]} {[%emt 00:02:49]} 25. Qe2 {[%clk 00:24:37]} {[%emt
00:03:27]} Nb8 {[%clk 00:03:13]} {[%emt 00:00:18]} 26. c4 {[%clk 00:24:38]}
{[%emt 00:00:29]} Qh5 {[%clk 00:02:21]} {[%emt 00:01:21]} 27. Bb2 {[%clk
00:22:52]} {[%emt 00:02:17]} Rg6 {[%clk 00:02:13]} {[%emt 00:00:38]} 28. Qe4
{[%clk 00:20:50]} {[%emt 00:02:32]} Rf8 {[%clk 00:01:16]} {[%emt 00:01:27]} 29.
Rf1 {[%clk 00:16:35]} {[%emt 00:04:44]} Rgf6 {[%clk 00:00:49]} {[%emt
00:00:57]} 30. Rae1 {[%clk 00:10:01]} {[%emt 00:07:05]} Nd7 {[%clk 00:01:01]}
{[%emt 00:00:18]} 31. Kh1 {[%clk 00:08:41]} {[%emt 00:01:49]} Qf7 {[%clk
00:00:51]} {[%emt 00:00:40]} 32. Qe2 {[%clk 00:07:40]} {[%emt 00:01:31]} Qg6
{[%clk 00:00:47]} {[%emt 00:00:34]} 33. c5 {[%clk 00:04:32]} {[%emt 00:03:38]}
Bg3 {[%clk 00:00:42]} {[%emt 00:00:35]} 34. Rd1 {[%clk 00:02:33]} {[%emt
00:02:30]} Rf5 {[%clk 00:00:59]} {[%emt 00:00:12]} 35. c6 {[%clk 00:02:28]}
{[%emt 00:00:35]} Nb8 {[%clk 00:01:06]} {[%emt 00:00:23]} 36. Ba3 {[%clk
00:02:43]} {[%emt 00:00:16]} R8f6 {[%clk 00:00:51]} {[%emt 00:00:45]} 37. Rc1
{[%clk 00:02:32]} {[%emt 00:00:40]} Qh5 {[%clk 00:00:50]} {[%emt 00:00:31]} 38.
Rc3 {[%clk 00:01:49]} {[%emt 00:01:13]} g5 {[%clk 00:00:40]} {[%emt 00:00:41]}
39. Rd1 {[%clk 00:01:37]} {[%emt 00:00:42]} Qf7 {[%clk 00:00:33]} {[%emt
00:00:37]} 40. Rcc1 {[%clk 00:01:20]} {[%emt 00:00:47]} Bf4 {[%clk 00:00:38]}
{[%emt 00:00:24]} 41. Ne5 {[%clk 00:27:21]} {[%emt 00:04:29]} Qe8 {[%clk
00:10:27]} {[%emt 00:20:42]} 42. Rc3 {[%clk 00:25:17]} {[%emt 00:02:33]} h5
{[%clk 00:09:12]} {[%emt 00:01:45]} 43. Kg1 {[%clk 00:19:15]} {[%emt 00:06:33]}
g4 {[%clk 00:07:33]} {[%emt 00:02:08]} 44. hxg4 {[%clk 00:18:18]} {[%emt
00:01:26]} hxg4 {[%clk 00:08:01]} {[%emt 00:00:03]} 45. Bc1 {[%clk 00:05:29]}
{[%emt 00:13:20]} Qh5 {[%clk 00:05:15]} {[%emt 00:03:15]} 46. Qxg4+ {[%clk
00:04:04]} {[%emt 00:01:56]} Qxg4 {[%clk 00:05:16]} {[%emt 00:00:29]} 47. Nxg4
{[%clk 00:04:31]} {[%emt 00:00:01]} Rg6 {[%clk 00:03:43]} {[%emt 00:02:04]} 48.
Bxf4 {[%clk 00:04:03]} {[%emt 00:00:59]} Rxf4 {[%clk 00:04:11]} {[%emt
00:00:01]} 49. Ne5 {[%clk 00:04:32]} {[%emt 00:00:02]} Rg5 {[%clk 00:04:10]}
{[%emt 00:00:31]} 50. Rdd3 {[%clk 00:01:09]} {[%emt 00:03:53]} Kg7 {[%clk
00:03:29]} {[%emt 00:01:10]} 51. Rg3 {[%clk 00:01:20]} {[%emt 00:00:19]} Rxg3
{[%clk 00:03:26]} {[%emt 00:00:33]} 52. Rxg3+ {[%clk 00:01:45]} {[%emt
00:00:05]} Kf6 {[%clk 00:03:38]} {[%emt 00:00:18]} 53. Rd3 {[%clk 00:01:14]}
{[%emt 00:01:01]} Na6 {[%clk 00:02:51]} {[%emt 00:01:18]} 54. g3 {[%clk
00:01:42]} {[%emt 00:00:01]} Rf5 {[%clk 00:03:03]} {[%emt 00:00:18]} 55. g4
{[%clk 00:01:20]} {[%emt 00:00:53]} Rf4 {[%clk 00:03:16]} {[%emt 00:00:17]} 56.
Kg2 {[%clk 00:01:48]} {[%emt 00:00:02]} Nb4 {[%clk 00:02:38]} {[%emt 00:01:08]}
57. Rd2 {[%clk 00:02:14]} {[%emt 00:00:03]} Kg5 {[%clk 00:01:57]} {[%emt
00:01:11]} 58. Kg3 {[%clk 00:02:29]} {[%emt 00:00:15]} Re4 {[%clk 00:02:19]}
{[%emt 00:00:08]} 59. Nf3+ {[%clk 00:01:33]} {[%emt 00:01:27]} Kg6 {[%clk
00:02:41]} {[%emt 00:00:07]} 60. Ne5+ {[%clk 00:01:50]} {[%emt 00:00:13]} Kg5
{[%clk 00:03:09]} {[%emt 00:00:02]} 61. Kf3 {[%clk 00:01:51]} {[%emt 00:00:29]}
Re1 {[%clk 00:00:46]} {[%emt 00:02:53]} 62. Rh2 {[%clk 00:02:00]} {[%emt
00:00:21]} Nd5 {[%clk 00:00:42]} {[%emt 00:00:34]} 63. Rh5+ {[%clk 00:02:22]}
{[%emt 00:00:08]} Kf6 {[%clk 00:01:11]} {[%emt 00:00:02]} 64. Rh6+ {[%clk
00:02:45]} {[%emt 00:00:07]} Kg7 {[%clk 00:01:16]} {[%emt 00:00:24]} 65. Rxe6
{[%clk 00:01:19]} {[%emt 00:01:56]} Re3+ {[%clk 00:01:40]} {[%emt 00:00:06]} 66.
Kf2 {[%clk 00:01:46]} {[%emt 00:00:02]} Re4 {[%clk 00:00:39]} {[%emt 00:01:33]}
67. Re8 {[%clk 00:01:44]} {[%emt 00:00:32]} Rxd4 {[%clk 00:00:42]} {[%emt
00:00:26]} 68. Rd8 {[%clk 00:02:06]} {[%emt 00:00:08]} Kf6 {[%clk 00:00:51]}
{[%emt 00:00:21]} 69. Nf3 {[%clk 00:02:25]} {[%emt 00:00:11]} Rd1 {[%clk
00:01:15]} {[%emt 00:00:06]} 70. Rd7 {[%clk 00:01:52]} {[%emt 00:01:03]} Ke6
{[%clk 00:00:53]} {[%emt 00:00:53]} 71. g5 {[%clk 00:02:03]} {[%emt 00:00:19]}
Kf5 {[%clk 00:01:14]} {[%emt 00:00:09]} 72. Rf7+ {[%clk 00:01:19]} {[%emt
00:01:13]} Kg6 {[%clk 00:01:32]} {[%emt 00:00:12]} 73. Ne5+ {[%clk 00:01:23]}
{[%emt 00:00:26]} Kxg5 {[%clk 00:01:50]} {[%emt 00:00:12]} 74. Nc4 {[%clk
00:01:27]} {[%emt 00:00:26]} Rd3 {[%clk 00:01:34]} {[%emt 00:00:45]} 75. Rd7
{[%clk 00:01:36]} {[%emt 00:00:22]} Kf6 {[%clk 00:00:52]} {[%emt 00:01:13]} 76.
Nxb6 {[%clk 00:00:45]} {[%emt 00:01:20]} cxb6 {[%clk 00:01:11]} {[%emt
00:00:11]} 77. c7 {[%clk 00:01:14]} {[%emt 00:00:01]} Rc3 {[%clk 00:00:59]}
{[%emt 00:00:42]} 78. Rxd5 {[%clk 00:01:43]} {[%emt 00:00:01]} Rxc7 {[%clk
00:00:46]} {[%emt 00:00:44]} 79. Rd6+ {[%clk 00:02:12]} Ke5 {[%clk 00:01:05]}
{[%emt 00:00:11]} 80. Rxb6 {[%clk 00:02:41]} Kd4 {[%clk 00:01:28]} {[%emt
00:00:06]} 81. Ke2 {[%clk 00:01:18]} {[%emt 00:01:53]} Kc3 {[%clk 00:01:46]}
{[%emt 00:00:12]} 82. Rb5 {[%clk 00:01:27]} {[%emt 00:00:21]} Re7+ {[%clk
00:02:06]} {[%emt 00:00:11]} 83. Kd1 {[%clk 00:01:51]} {[%emt 00:00:05]} Re4
{[%clk 00:01:47]} {[%emt 00:00:49]} 84. Rb8 {[%clk 00:01:20]} {[%emt 00:01:00]}
Re6 {[%clk 00:02:02]} {[%emt 00:00:17]} 85. Rb7 {[%clk 00:01:12]} {[%emt
00:00:37]} Re5 {[%clk 00:02:11]} {[%emt 00:00:21]} 86. Rb5 {[%clk 00:01:11]}
{[%emt 00:00:32]} Re4 {[%clk 00:02:35]} {[%emt 00:00:05]} 87. Rxa5 {[%clk
00:01:27]} {[%emt 00:00:15]} Kxb3 {[%clk 00:03:00]} {[%emt 00:00:05]} 88. Ra8
{[%clk 00:01:53]} {[%emt 00:00:03]} Rxa4 {[%clk 00:03:23]} {[%emt 00:00:07]} 89.
Rxa4 {[%clk 00:02:21]} {[%emt 00:00:03]} Kxa4 {[%clk 00:03:45]} {[%emt
00:00:07]} 1/2-1/2

[Event "Masters Tournament (MTO)"]
[Site "Biel, Switzerland"]
[Date "2026.07.23"]
[Round "10.12"]
[White "Yasaswi, Krishna Bommi"]
[Black "Ashwath, Kaushik"]
[Result "0-1"]
[TimeControl "100+30+30sec/move"]
[WhiteTitle "-"]
[BlackTitle "-"]
[WhiteFideId "33368783"]
[BlackFideId "33387230"]
[WhiteElo "2085"]
[BlackElo "2278"]

1. d4 {[%clk 01:40:56]} {[%emt 00:00:01]} e6 {[%clk 01:40:45]} {[%emt
00:00:15]} 2. Bf4 {[%clk 01:41:15]} {[%emt 00:00:13]} c5 {[%clk 01:41:06]}
{[%emt 00:00:08]} 3. e3 {[%clk 01:41:14]} {[%emt 00:00:31]} Qb6 {[%clk
01:41:28]} {[%emt 00:00:08]} 4. Nc3 {[%clk 01:35:37]} {[%emt 00:06:07]} a6
{[%clk 01:41:48]} {[%emt 00:00:10]} 5. Nf3 {[%clk 01:27:03]} {[%emt 00:09:03]}
d5 {[%clk 01:38:05]} {[%emt 00:04:13]} 6. dxc5 {[%clk 01:22:56]} {[%emt
00:04:38]} Bxc5 {[%clk 01:37:25]} {[%emt 00:01:10]} 7. Na4 {[%clk 01:19:31]}
{[%emt 00:03:55]} Qa5+ {[%clk 01:34:18]} {[%emt 00:03:37]} 8. c3 {[%clk
01:19:07]} {[%emt 00:00:54]} Be7 {[%clk 01:30:19]} {[%emt 00:04:28]} 9. b4
{[%clk 01:13:26]} {[%emt 00:06:10]} Qd8 {[%clk 01:27:18]} {[%emt 00:03:32]} 10.
Be2 {[%clk 01:11:34]} {[%emt 00:02:22]} Nc6 {[%clk 01:24:37]} {[%emt 00:03:09]}
11. O-O {[%clk 01:09:58]} {[%emt 00:02:09]} Nf6 {[%clk 01:16:51]} {[%emt
00:08:17]} 12. h3 {[%clk 01:09:55]} {[%emt 00:00:32]} O-O {[%clk 01:17:04]}
{[%emt 00:00:17]} 13. Qb3 {[%clk 01:08:44]} {[%emt 00:01:41]} Ne4 {[%clk
01:12:30]} {[%emt 00:05:04]} 14. Rfd1 {[%clk 01:01:49]} {[%emt 00:07:25]} b5
{[%clk 01:08:26]} {[%emt 00:04:35]} 15. Nb2 {[%clk 01:01:18]} {[%emt 00:01:00]}
Bf6 {[%clk 01:02:59]} {[%emt 00:05:57]} 16. Rac1 {[%clk 00:54:20]} {[%emt
00:07:27]} Qb6 {[%clk 00:50:32]} {[%emt 00:12:57]} 17. Bd3 {[%clk 00:47:33]}
{[%emt 00:07:17]} e5 {[%clk 00:43:56]} {[%emt 00:07:06]} 18. Bh2 {[%clk
00:38:13]} {[%emt 00:09:50]} Be6 {[%clk 00:34:11]} {[%emt 00:10:16]} 19. Qc2
{[%clk 00:32:11]} {[%emt 00:06:32]} Nd6 {[%clk 00:30:01]} {[%emt 00:04:40]} 20.
Bxh7+ {[%clk 00:25:59]} {[%emt 00:06:41]} Kh8 {[%clk 00:30:20]} {[%emt
00:00:11]} 21. Bd3 {[%clk 00:25:10]} {[%emt 00:01:19]} a5 {[%clk 00:27:46]}
{[%emt 00:03:05]} 22. a3 {[%clk 00:20:14]} {[%emt 00:05:25]} axb4 {[%clk
00:25:09]} {[%emt 00:03:07]} 23. axb4 {[%clk 00:18:29]} {[%emt 00:02:16]} Rfd8
{[%clk 00:18:23]} {[%emt 00:07:14]} 24. e4 {[%clk 00:12:56]} {[%emt 00:06:05]}
d4 {[%clk 00:13:15]} {[%emt 00:05:38]} 25. Qe2 {[%clk 00:11:07]} {[%emt
00:02:18]} dxc3 {[%clk 00:10:50]} {[%emt 00:02:55]} 26. Rxc3 {[%clk 00:11:23]}
{[%emt 00:00:15]} Nxb4 {[%clk 00:07:35]} {[%emt 00:03:44]} 27. Bb1 {[%clk
00:06:22]} {[%emt 00:05:32]} Nc4 {[%clk 00:04:17]} {[%emt 00:03:48]} 28. Rdc1
{[%clk 00:03:24]} {[%emt 00:03:28]} Nc6 {[%clk 00:01:56]} {[%emt 00:02:51]} 29.
Bd3 {[%clk 00:01:50]} {[%emt 00:02:03]} Ra2 {[%clk 00:00:42]} {[%emt 00:01:45]}
30. Bxc4 {[%clk 00:01:09]} {[%emt 00:01:11]} bxc4 {[%clk 00:00:58]} {[%emt
00:00:14]} 31. R1c2 {[%clk 00:00:37]} {[%emt 00:01:03]} Rxb2 {[%clk 00:00:54]}
{[%emt 00:00:33]} 32. Bxe5 {[%clk 00:00:39]} {[%emt 00:00:28]} Rxc2 {[%clk
00:00:53]} {[%emt 00:00:30]} 33. Rxc2 {[%clk 00:00:55]} {[%emt 00:00:15]} Nxe5
{[%clk 00:01:15]} {[%emt 00:00:08]} 34. Nxe5 {[%clk 00:01:21]} {[%emt
00:00:04]} Bxe5 {[%clk 00:01:29]} {[%emt 00:00:16]} 0-1

[Event "Masters Tournament (MTO)"]
[Site "Biel, Switzerland"]
[Date "2026.07.23"]
[Round "10.13"]
[White "Erne, Raphael"]
[Black "Cherniaev, Alexander"]
[Result "0-1"]
[TimeControl "100+30+30sec/move"]
[WhiteTitle "-"]
[BlackTitle "-"]
[WhiteFideId "1341928"]
[BlackFideId "4117301"]
[WhiteElo "2166"]
[BlackElo "2275"]

1. c4 {[%clk 01:40:49]} {[%emt 00:00:08]} e6 {[%clk 01:40:51]} {[%emt
00:00:11]} 2. g3 {[%clk 01:41:03]} {[%emt 00:00:15]} d5 {[%clk 01:41:16]}
{[%emt 00:00:05]} 3. Bg2 {[%clk 01:41:16]} {[%emt 00:00:17]} g6 {[%clk
01:41:22]} {[%emt 00:00:25]} 4. d4 {[%clk 01:40:22]} {[%emt 00:01:23]} Bg7
{[%clk 01:41:45]} {[%emt 00:00:07]} 5. Nf3 {[%clk 01:39:57]} {[%emt 00:00:55]}
Ne7 {[%clk 01:41:45]} {[%emt 00:00:30]} 6. O-O {[%clk 01:39:01]} {[%emt
00:01:26]} Nbc6 {[%clk 01:41:44]} {[%emt 00:00:31]} 7. e3 {[%clk 01:33:04]}
{[%emt 00:06:27]} O-O {[%clk 01:41:41]} {[%emt 00:00:32]} 8. Nc3 {[%clk
01:26:36]} {[%emt 00:06:59]} b6 {[%clk 01:41:24]} {[%emt 00:00:47]} 9. cxd5
{[%clk 01:26:39]} {[%emt 00:00:27]} exd5 {[%clk 01:41:53]} {[%emt 00:00:02]} 10.
Re1 {[%clk 01:24:36]} {[%emt 00:02:33]} a5 {[%clk 01:41:26]} {[%emt 00:00:56]}
11. b3 {[%clk 01:18:58]} {[%emt 00:06:08]} Ba6 {[%clk 01:37:36]} {[%emt
00:04:20]} 12. a3 {[%clk 01:16:40]} {[%emt 00:02:49]} Bc8 {[%clk 01:31:34]}
{[%emt 00:06:31]} 13. Bb2 {[%clk 01:15:23]} {[%emt 00:01:46]} h6 {[%clk
01:30:12]} {[%emt 00:01:53]} 14. Rc1 {[%clk 01:08:39]} {[%emt 00:07:13]} Be6
{[%clk 01:30:37]} {[%emt 00:00:06]} 15. Nb5 {[%clk 01:02:51]} {[%emt 00:06:18]}
Qd7 {[%clk 01:30:32]} {[%emt 00:00:35]} 16. a4 {[%clk 00:54:03]} {[%emt
00:09:18]} Rfc8 {[%clk 01:30:30]} {[%emt 00:00:32]} 17. e4 {[%clk 00:40:07]}
{[%emt 00:14:25]} dxe4 {[%clk 01:30:11]} {[%emt 00:00:50]} 18. Rxe4 {[%clk
00:40:11]} {[%emt 00:00:27]} Rab8 {[%clk 01:26:10]} {[%emt 00:04:30]} 19. Rxe6
{[%clk 00:28:44]} {[%emt 00:11:57]} fxe6 {[%clk 01:24:05]} {[%emt 00:02:34]} 20.
Qe2 {[%clk 00:28:22]} {[%emt 00:00:53]} Nd5 {[%clk 01:20:50]} {[%emt 00:03:45]}
21. Nh4 {[%clk 00:25:51]} {[%emt 00:03:01]} Nce7 {[%clk 01:19:44]} {[%emt
00:01:36]} 22. Bh3 {[%clk 00:25:10]} {[%emt 00:01:12]} Kf7 {[%clk 01:20:13]}
{[%emt 00:00:01]} 23. Re1 {[%clk 00:21:24]} {[%emt 00:04:15]} Nf5 {[%clk
01:20:26]} {[%emt 00:00:17]} 24. Qg4 {[%clk 00:19:00]} {[%emt 00:02:54]} Nde7
{[%clk 01:13:31]} {[%emt 00:07:25]} 25. d5 {[%clk 00:18:46]} {[%emt 00:00:44]}
Qxd5 {[%clk 01:12:22]} {[%emt 00:01:39]} 26. Rd1 {[%clk 00:12:37]} {[%emt
00:06:39]} Qxb3 {[%clk 00:53:37]} {[%emt 00:19:15]} 27. Bxg7 {[%clk 00:10:10]}
{[%emt 00:02:56]} Kxg7 {[%clk 00:49:09]} {[%emt 00:04:58]} 28. Nd4 {[%clk
00:05:49]} {[%emt 00:04:51]} Nxd4 {[%clk 00:47:00]} {[%emt 00:02:40]} 29. Qxd4+
{[%clk 00:06:18]} {[%emt 00:00:01]} Kh7 {[%clk 00:47:29]} 30. Re1 {[%clk
00:03:07]} {[%emt 00:03:41]} Qb4 {[%clk 00:46:31]} {[%emt 00:01:28]} 31. Qe5
{[%clk 00:02:27]} {[%emt 00:01:11]} Rg8 {[%clk 00:46:34]} {[%emt 00:00:26]} 32.
Bxe6 {[%clk 00:01:34]} {[%emt 00:01:23]} Rg7 {[%clk 00:47:03]} {[%emt
00:00:01]} 33. Nf3 {[%clk 00:01:18]} {[%emt 00:00:46]} Rf8 {[%clk 00:46:13]}
{[%emt 00:01:20]} 34. Kg2 {[%clk 00:01:00]} {[%emt 00:00:48]} Nc6 {[%clk
00:40:44]} {[%emt 00:05:59]} 35. Qe3 {[%clk 00:00:38]} {[%emt 00:00:52]} Re7
{[%clk 00:39:03]} {[%emt 00:02:11]} 0-1

[Event "Masters Tournament (MTO)"]
[Site "Biel, Switzerland"]
[Date "2026.07.23"]
[Round "10.14"]
[White "Pleschke, Julius Jonas"]
[Black "Ivana Maria, Furtado"]
[Result "1-0"]
[TimeControl "100+30+30sec/move"]
[WhiteTitle "-"]
[BlackTitle "-"]
[WhiteFideId "54734258"]
[BlackFideId "5048400"]
[WhiteElo "2280"]
[BlackElo "2182"]

1. Nf3 {[%clk 01:40:56]} {[%emt 00:16:27]} d5 {[%clk 01:40:29]} {[%emt
00:00:33]} 2. e3 {[%clk 01:41:19]} {[%emt 00:00:06]} Nf6 {[%clk 01:39:56]}
{[%emt 00:01:03]} 3. c4 {[%clk 01:41:43]} {[%emt 00:00:06]} e6 {[%clk
01:37:30]} {[%emt 00:02:57]} 4. Nc3 {[%clk 01:41:46]} {[%emt 00:00:26]} Be7
{[%clk 01:37:30]} {[%emt 00:00:31]} 5. b3 {[%clk 01:41:44]} {[%emt 00:00:31]}
O-O {[%clk 01:36:42]} {[%emt 00:01:19]} 6. Bb2 {[%clk 01:42:09]} {[%emt
00:00:04]} b6 {[%clk 01:25:01]} {[%emt 00:12:12]} 7. cxd5 {[%clk 01:40:56]}
{[%emt 00:01:42]} exd5 {[%clk 01:24:30]} {[%emt 00:01:02]} 8. g3 {[%clk
01:41:15]} {[%emt 00:00:09]} c5 {[%clk 01:20:44]} {[%emt 00:04:18]} 9. Bg2
{[%clk 01:34:23]} {[%emt 00:07:22]} Nc6 {[%clk 01:18:32]} {[%emt 00:02:43]} 10.
O-O {[%clk 01:32:35]} {[%emt 00:02:17]} Ba6 {[%clk 01:16:35]} {[%emt 00:02:28]}
11. Ne2 {[%clk 01:20:17]} {[%emt 00:12:46]} b5 {[%clk 01:05:28]} {[%emt
00:11:38]} 12. a3 {[%clk 01:18:03]} {[%emt 00:02:44]} Qb6 {[%clk 01:03:18]}
{[%emt 00:02:40]} 13. d3 {[%clk 01:09:19]} {[%emt 00:09:13]} Rad8 {[%clk
01:00:49]} {[%emt 00:03:00]} 14. Qc2 {[%clk 01:02:30]} {[%emt 00:07:18]} b4
{[%clk 00:53:31]} {[%emt 00:07:49]} 15. Nf4 {[%clk 00:57:18]} {[%emt 00:05:42]}
bxa3 {[%clk 00:50:17]} {[%emt 00:03:44]} 16. Bxa3 {[%clk 00:56:43]} {[%emt
00:01:05]} h6 {[%clk 00:37:10]} {[%emt 00:13:37]} 17. Rfc1 {[%clk 00:51:25]}
{[%emt 00:05:48]} g5 {[%clk 00:31:55]} {[%emt 00:05:46]} 18. Bxc5 {[%clk
00:39:57]} {[%emt 00:11:57]} Bxc5 {[%clk 00:32:15]} {[%emt 00:00:10]} 19. Qxc5
{[%clk 00:40:12]} {[%emt 00:00:15]} Qxc5 {[%clk 00:30:56]} {[%emt 00:01:50]} 20.
Rxc5 {[%clk 00:40:40]} {[%emt 00:00:01]} Nb4 {[%clk 00:26:15]} {[%emt
00:05:11]} 21. Ne2 {[%clk 00:39:25]} {[%emt 00:01:44]} Bxd3 {[%clk 00:25:57]}
{[%emt 00:00:49]} 22. Ned4 {[%clk 00:39:01]} {[%emt 00:00:54]} Rc8 {[%clk
00:21:24]} {[%emt 00:05:04]} 23. Rxc8 {[%clk 00:34:24]} {[%emt 00:05:07]} Rxc8
{[%clk 00:21:45]} {[%emt 00:00:08]} 24. Ne5 {[%clk 00:34:51]} {[%emt 00:00:02]}
Rc7 {[%clk 00:16:32]} {[%emt 00:05:43]} 25. Nxd3 {[%clk 00:32:56]} {[%emt
00:02:25]} Nxd3 {[%clk 00:17:00]} {[%emt 00:00:03]} 26. Bf1 {[%clk 00:33:01]}
{[%emt 00:00:24]} Rc1 {[%clk 00:12:10]} {[%emt 00:05:21]} 27. Rxc1 {[%clk
00:31:27]} {[%emt 00:02:03]} Nxc1 {[%clk 00:12:39]} {[%emt 00:00:02]} 28. b4
{[%clk 00:31:49]} {[%emt 00:00:09]} Kf8 {[%clk 00:09:11]} {[%emt 00:03:57]} 29.
Nc6 {[%clk 00:29:44]} {[%emt 00:02:34]} Ke8 {[%clk 00:07:28]} {[%emt 00:02:14]}
30. Nxa7 {[%clk 00:30:06]} {[%emt 00:00:07]} Kd7 {[%clk 00:07:47]} {[%emt
00:00:12]} 31. b5 {[%clk 00:29:33]} {[%emt 00:01:02]} Kc7 {[%clk 00:08:11]}
{[%emt 00:00:06]} 32. Nc6 {[%clk 00:29:59]} {[%emt 00:00:04]} Ne4 {[%clk
00:05:01]} {[%emt 00:03:41]} 33. Ne7 {[%clk 00:23:32]} {[%emt 00:06:57]} Nc3
{[%clk 00:05:23]} {[%emt 00:00:09]} 34. g4 {[%clk 00:23:33]} {[%emt 00:00:28]}
N1e2+ {[%clk 00:03:13]} {[%emt 00:02:40]} 35. Bxe2 {[%clk 00:20:27]} {[%emt
00:03:36]} Nxe2+ {[%clk 00:03:42]} 36. Kf1 {[%clk 00:19:48]} {[%emt 00:01:08]}
Nc3 {[%clk 00:04:09]} {[%emt 00:00:04]} 37. Ng8 {[%clk 00:18:26]} {[%emt
00:01:52]} Nxb5 {[%clk 00:04:36]} {[%emt 00:00:03]} 38. Nxh6 {[%clk 00:18:44]}
{[%emt 00:00:11]} Nd6 {[%clk 00:05:04]} {[%emt 00:00:03]} 39. Ng8 {[%clk
00:15:48]} {[%emt 00:03:26]} Ne8 {[%clk 00:03:09]} {[%emt 00:02:24]} 40. Ne7
{[%clk 00:15:32]} {[%emt 00:00:45]} Kd6 {[%clk 00:02:53]} {[%emt 00:00:44]} 41.
Nf5+ {[%clk 00:15:57]} {[%emt 00:00:09]} Ke6 {[%clk 00:21:48]} {[%emt
00:11:35]} 42. h3 {[%clk 00:45:27]} {[%emt 00:00:59]} f6 {[%clk 00:20:24]}
{[%emt 00:01:55]} 43. Ke2 {[%clk 00:45:33]} {[%emt 00:00:23]} Ke5 {[%clk
00:17:54]} {[%emt 00:03:01]} 44. Kd3 {[%clk 00:45:14]} {[%emt 00:00:48]} Nc7
{[%clk 00:17:57]} {[%emt 00:00:28]} 45. Nd4 {[%clk 00:44:28]} {[%emt 00:01:15]}
Na6 {[%clk 00:16:54]} {[%emt 00:01:34]} 46. f4+ {[%clk 00:42:01]} {[%emt
00:02:56]} Kd6 {[%clk 00:11:16]} {[%emt 00:06:08]} 47. Nb3 {[%clk 00:30:33]}
{[%emt 00:11:59]} Nc7 {[%clk 00:09:29]} {[%emt 00:02:17]} 48. Ke2 {[%clk
00:30:28]} {[%emt 00:00:35]} Nb5 {[%clk 00:08:37]} {[%emt 00:01:21]} 49. Kf3
{[%clk 00:29:14]} {[%emt 00:01:44]} Nc3 {[%clk 00:08:44]} {[%emt 00:00:24]} 50.
Nd4 {[%clk 00:28:46]} {[%emt 00:00:58]} Ne4 {[%clk 00:08:33]} {[%emt 00:00:41]}
51. Nf5+ {[%clk 00:27:14]} {[%emt 00:02:01]} Kc5 {[%clk 00:06:36]} {[%emt
00:02:28]} 52. Ng3 {[%clk 00:24:33]} {[%emt 00:03:10]} Nc3 {[%clk 00:04:14]}
{[%emt 00:02:53]} 53. e4 {[%clk 00:20:48]} {[%emt 00:04:15]} gxf4 {[%clk
00:04:29]} {[%emt 00:00:15]} 54. Kxf4 {[%clk 00:20:54]} {[%emt 00:00:24]} d4
{[%clk 00:04:56]} {[%emt 00:00:03]} 55. h4 {[%clk 00:19:25]} {[%emt 00:01:58]}
d3 {[%clk 00:03:21]} {[%emt 00:02:06]} 56. Nf1 {[%clk 00:08:27]} {[%emt
00:11:27]} Kd4 {[%clk 00:03:29]} {[%emt 00:00:24]} 57. h5 {[%clk 00:07:11]}
{[%emt 00:01:45]} Nxe4 {[%clk 00:03:51]} {[%emt 00:00:09]} 58. h6 {[%clk
00:07:27]} {[%emt 00:00:13]} Ng5 {[%clk 00:02:02]} {[%emt 00:02:20]} 59. Kf5
{[%clk 00:07:39]} {[%emt 00:00:16]} Ne4 {[%clk 00:00:39]} {[%emt 00:01:54]} 60.
h7 {[%clk 00:06:49]} {[%emt 00:01:20]} Ng3+ {[%clk 00:00:52]} {[%emt 00:00:17]}
61. Nxg3 {[%clk 00:07:12]} {[%emt 00:00:07]} d2 {[%clk 00:00:41]} {[%emt
00:00:41]} 62. h8=Q {[%clk 00:07:36]} {[%emt 00:00:07]} d1=Q {[%clk 00:00:34]}
{[%emt 00:00:36]} 63. Qd8+ {[%clk 00:08:00]} {[%emt 00:00:07]} Ke3 {[%clk
00:01:00]} {[%emt 00:00:03]} 64. Qxd1 {[%clk 00:08:20]} {[%emt 00:00:10]} 1-0